bitfinex-derivatives/quotes_SOLF0:USTF0_20251108
["timestamp","ask_amount","ask_price","bid_price","bid_amount"]
[1762562251350,0.04112044,160.94,160.92,3.0]
[1762562252651,0.04112044,160.94,160.91,4.54999251]
[1762562255860,3.01112044,160.94,160.91,4.54999251]
[1762562256458,3.01112044,160.94,160.91,1.58999251]
[1762562256649,3.01112044,160.94,160.91,4.54999251]
[1762562256650,0.04112044,160.94,160.91,4.54999251]
[1762562258358,3.01112044,160.94,160.91,1.58999251]
[1762562258949,2.97,160.93,160.91,1.58999251]
[1762562259543,2.97,160.92,160.91,1.58999251]
[1762562260950,5.5968,160.93,160.91,1.58999251]
[1762562261151,8.5668,160.93,160.91,1.58999251]
[1762562262757,0.04112044,160.94,160.92,3.19]
[1762562263351,0.04112044,160.94,160.91,4.77999251]
[1762562263860,5.63752044,160.94,160.91,4.77999251]
[1762562265659,0.04112044,160.94,160.92,3.19]
[1762562265856,3.01112044,160.94,160.91,4.77999251]
[1762562266357,8.60752044,160.94,160.91,4.77999251]
[1762562266963,0.04112044,160.94,160.92,3.19]
[1762562271348,5.63762044,160.94,160.91,4.77999251]
[1762562271754,5.63762044,160.94,160.92,3.19]
[1762562271957,5.5969,160.93,160.91,1.58999251]
[1762562272748,0.04112044,160.94,160.92,3.19]
[1762562272957,3.01112044,160.94,160.91,4.77999251]
[1762562273354,0.04112044,160.94,160.91,4.77999251]
[1762562273558,0.04112044,160.94,160.92,3.19]
[1762562273759,3.01112044,160.94,160.91,1.58999251]
[1762562273961,8.60752044,160.94,160.91,1.58999251]
[1762562274163,3.01112044,160.94,160.91,1.58999251]
[1762562274667,3.01112044,160.94,160.91,4.77999251]
[1762562274869,5.5968,160.93,160.91,4.77999251]
[1762562276069,3.01112044,160.94,160.91,4.77999251]
[1762562276968,3.01112044,160.94,160.91,68.01999251]
[1762562277167,3.01112044,160.94,160.91,4.77999251]
[1762562277570,3.01112044,160.94,160.91,27.63999251]
[1762562277867,0.04112044,160.94,160.92,3.19]
[1762562278072,5.63752044,160.94,160.92,3.19]
[1762562279762,8.5667,160.93,160.91,24.44999251]
[1762562280071,8.5667,160.93,160.91,1.58999251]
[1762562281273,2.97,160.92,160.91,1.58999251]
[1762562283168,0.04112044,160.94,160.91,1.58999251]
[1762562283377,0.04112044,160.94,160.92,3.16]
[1762562285470,2.96,160.93,160.91,1.58999251]
[1762562285977,8.5568,160.93,160.91,1.58999251]
[1762562286568,2.96,160.92,160.91,1.58999251]
[1762562288974,4.49232467,160.94,160.81,3.05958447]
[1762562289175,2.96,160.88,160.82,3.16]
[1762562289682,0.04701745,160.89,160.85,3.16]
[1762562291175,0.04701745,160.89,160.84,3.05958447]
[1762562291176,0.04701745,160.89,160.87,3.16]
[1762562292279,0.04701745,160.89,160.88,3.16]
[1762562296584,0.04701745,160.89,160.87,63.14]
[1762562296585,0.04701745,160.89,160.87,3.16]
[1762562297677,0.04701745,160.89,160.87,66.28]
[1762562297878,0.04701745,160.89,160.88,3.16]
[1762562298983,0.04701745,160.89,160.85,3.16]
[1762562299181,0.04701745,160.89,160.86,66.26]
[1762562299386,0.04701745,160.89,160.86,3.16]
[1762562299688,0.04701745,160.89,160.86,66.26]
[1762562299881,0.04701745,160.89,160.87,3.16]
[1762562301380,0.04701745,160.89,160.88,3.16]
[1762562304786,0.04701745,160.89,160.87,63.08]
[1762562304990,0.04701745,160.89,160.88,3.16]
[1762562306992,0.04701745,160.89,160.88,66.16]
[1762562307489,0.04701745,160.89,160.88,3.16]
[1762562307692,0.04701745,160.89,160.88,66.14]
[1762562307994,0.04701745,160.89,160.88,3.16]
[1762562308498,7.50580697,160.89,160.87,62.96]
[1762562308790,2.96,160.89,160.86,62.96]
[1762562309185,2.96,160.89,160.86,66.12]
[1762562309995,8.5581,160.89,160.86,66.12]
[1762562310184,2.96,160.88,160.86,62.94]
[1762562310389,2.96,160.88,160.83,3.16]
[1762562310890,2.96,160.87,160.84,3.16]
[1762562311196,3.00355198,160.87,160.84,3.16]
[1762562311896,0.04355198,160.87,160.84,3.16]
[1762562312785,3.20355198,160.87,160.84,2.97]
[1762562313782,0.04355198,160.87,160.84,2.97]
[1762562315598,0.04355198,160.87,160.84,65.89]
[1762562315787,0.04355198,160.87,160.85,2.97]
[1762562315989,3.20355198,160.87,160.82,2.97]
[1762562316190,0.04000262,160.86,160.82,65.87]
[1762562316499,0.04000262,160.86,160.83,2.97]
[1762562319797,5.63920262,160.86,160.83,65.83]
[1762562320002,5.63920262,160.86,160.84,2.97]
[1762562320396,8.79920262,160.86,160.84,2.97]
[1762562320696,5.63920262,160.86,160.84,2.97]
[1762562321501,8.5495,160.85,160.83,62.84]
[1762562321694,5.5995,160.85,160.83,3.16]
[1762562322214,0.04000262,160.86,160.83,3.16]
[1762562322594,2.99000262,160.86,160.82,65.98]
[1762562322812,0.04000262,160.86,160.83,3.16]
[1762562324702,5.63920262,160.86,160.83,3.16]
[1762562326198,8.58920262,160.86,160.83,3.16]
[1762562326907,5.5995,160.85,160.83,3.16]
[1762562327115,0.04000262,160.86,160.83,3.16]
[1762562327304,8.58920262,160.86,160.83,3.16]
[1762562328200,5.5995,160.85,160.83,3.16]
[1762562329208,2.95,160.85,160.79,3.16]
[1762562329510,2.95,160.85,160.71,1.95989117]
[1762562329511,0.04277396,160.84,160.71,1.95989117]
[1762562329703,2.95,160.81,160.72,3.16]
[1762562329902,1.95989117,160.83,160.74,3.16]
[1762562329903,2.9948994,160.79,160.74,3.16]
[1762562330114,2.9948994,160.79,160.76,3.16]
[1762562330115,0.0448994,160.79,160.76,3.16]
[1762562330308,0.03994388,160.79,160.76,3.16]
[1762562330499,0.03994388,160.79,160.78,3.16]
[1762562330705,0.04079316,160.8,160.78,3.16]
[1762562330909,0.04079316,160.8,160.78,5.11989117]
[1762562331111,2.95,160.85,160.8,3.16]
[1762562331311,2.95,160.9,160.8,3.16]
[1762562331519,8.5486,160.88,160.82,3.16]
[1762562331726,7.65092427,160.87,160.82,3.16]
[1762562331923,2.95,160.85,160.79,3.16]
[1762562332120,2.95,160.83,160.79,3.16]
[1762562332326,2.99414364,160.83,160.8,0.04608689]
[1762562332722,2.95,160.82,160.8,0.04608689]
[1762562333425,2.99414364,160.83,160.8,3.20608689]
[1762562333627,2.99414364,160.83,160.8,0.04608689]
[1762562334020,7.64765276,160.82,160.8,0.04608689]
[1762562334327,2.99414364,160.83,160.8,3.20608689]
[1762562334520,2.99414364,160.83,160.8,0.04608689]
[1762562334928,7.69026397,160.83,160.8,0.04608689]
[1762562335129,2.95,160.82,160.8,0.04608689]
[1762562335728,8.5507,160.82,160.8,0.04608689]
[1762562335928,2.95,160.81,160.8,0.04608689]
[1762562337034,4.19,160.81,160.8,0.04608689]
[1762562337230,2.95,160.78,160.74,3.16]
[1762562338128,2.99546096,160.78,160.74,3.16]
[1762562338836,2.95,160.77,160.74,3.16]
[1762562340342,0.04546096,160.78,160.74,3.16]
[1762562340631,0.04546096,160.78,160.76,3.16]
[1762562341035,2.99546096,160.78,160.74,3.16]
[1762562341235,2.9938676,160.78,160.74,3.16]
[1762562342131,0.0438676,160.78,160.74,5.11989117]
[1762562342330,0.0438676,160.78,160.77,3.18]
[1762562342528,9.52823706,160.84,160.63,518.66352762]
[1762562342529,2.920599,160.79,160.74,3.18]
[1762562342725,2.92644728,160.78,160.74,3.18]
[1762562342926,2.92384271,160.78,160.74,3.18]
[1762562343128,8.4825,160.77,160.7,5.13989117]
[1762562343530,2.88,160.77,160.71,3.18]
[1762562343735,8.5243149,160.76,160.71,3.18]
[1762562343942,2.88,160.75,160.69,3.18]
[1762562345136,8.4839,160.73,160.69,3.18]
[1762562345339,2.88,160.72,160.66,3.18]
[1762562346226,0.04523357,160.73,160.67,3.18]
[1762562346934,0.04523357,160.73,160.69,3.18]
[1762562347239,0.04695017,160.73,160.72,5.13989117]
[1762562347438,0.04180645,160.74,160.73,3.18]
[1762562349541,2.92180645,160.74,160.69,3.18]
[1762562349736,2.88,160.73,160.69,3.18]
[1762562349931,0.04180645,160.74,160.69,3.18]
[1762562350151,2.92180645,160.74,160.69,3.18]
[1762562350732,0.04180645,160.74,160.69,3.18]
[1762562350933,2.88,160.73,160.69,3.18]
[1762562351530,8.4843,160.72,160.69,3.18]
[1762562351736,2.92180645,160.74,160.69,3.18]
[1762562351938,2.88,160.73,160.69,3.18]
[1762562352132,5.6045,160.71,160.69,3.18]
[1762562352444,2.88,160.71,160.65,3.18]
[1762562352645,4.83989117,160.69,160.61,3.18]
[1762562352940,0.04232364,160.67,160.61,3.18]
[1762562353147,0.04232364,160.67,160.59,1.95989117]
[1762562353148,2.92232364,160.67,160.58,1.61107712]
[1762562353344,4.68834589,160.66,160.59,3.18]
[1762562353542,4.68834589,160.65,160.59,3.18]
[1762562353744,7.56834589,160.66,160.59,3.18]
[1762562353934,2.88,160.66,160.59,3.18]
[1762562354133,0.04346083,160.64,160.59,3.18]
[1762562354339,0.04346083,160.64,160.61,3.18]
[1762562354742,0.00346083,160.64,160.61,3.18]
[1762562354944,2.88,160.72,160.62,3.18]
[1762562355139,10.72000721,160.75,160.63,3.18]
[1762562355446,4.68834589,160.77,160.63,3.18]
[1762562355645,2.88,160.78,160.69,3.18]
[1762562355840,0.04151674,160.75,160.72,0.04654794]
[1762562356138,2.92151674,160.75,160.72,0.04654794]
[1762562356543,0.04151674,160.75,160.72,3.22654794]
[1762562358043,0.04151674,160.75,160.72,0.04654794]
[1762562358044,2.92151674,160.75,160.72,0.04654794]
[1762562358245,2.92151674,160.75,160.72,0.00679927]
[1762562358552,8.52441674,160.75,160.72,0.00679927]
[1762562358749,2.92151674,160.75,160.72,0.00679927]
[1762562359745,2.88,160.74,160.72,0.00679927]
[1762562360749,2.88,160.73,160.72,0.00679927]
[1762562360952,7.54362268,160.73,160.72,0.00679927]
[1762562361250,4.66362268,160.73,160.72,3.18679927]
[1762562361652,0.04151674,160.75,160.72,3.18679927]
[1762562361842,4.99438423,160.74,160.72,3.18679927]
[1762562362154,0.04151674,160.75,160.72,3.18679927]
[1762562362450,4.9952288,160.74,160.72,0.00679927]
[1762562362642,4.9952288,160.73,160.72,0.00679927]
[1762562363244,4.99612603,160.73,160.72,0.00679927]
[1762562366457,0.04151674,160.75,160.72,0.00679927]
[1762562366757,5.00157236,160.74,160.72,0.00679927]
[1762562366958,0.04151674,160.75,160.72,0.00679927]
[1762562367256,5.00269169,160.74,160.72,0.00679927]
[1762562367458,0.04151674,160.75,160.72,0.00679927]
[1762562367648,5.00412862,160.74,160.72,0.00679927]
[1762562367850,0.04151674,160.75,160.72,0.00679927]
[1762562368159,5.00413682,160.74,160.72,0.00679927]
[1762562368357,5.64471674,160.75,160.72,0.00679927]
[1762562368550,5.00524786,160.74,160.72,0.00679927]
[1762562368756,5.00524786,160.73,160.72,0.00679927]
[1762562369661,6.24524786,160.73,160.64,3.18]
[1762562369861,2.88,160.71,160.59,3.18]
[1762562370061,2.88,160.69,160.59,3.18]
[1762562370360,5.6061,160.66,160.6,3.18]
[1762562370871,2.92602722,160.65,160.6,3.18]
[1762562372061,0.04602722,160.65,160.59,3.18]
[1762562372758,0.04602722,160.65,160.61,3.18]
[1762562373265,0.04602722,160.65,160.64,3.18]
[1762562374252,5.69202599,160.75,160.64,3.18]
[1762562374253,5.01245896,160.7,160.67,3.18]
[1762562374456,3.03,160.76,160.67,3.18]
[1762562374657,3.03,160.76,160.61,7.83285596]
[1762562374658,5.00932967,160.75,160.68,8.785]
[1762562374855,5.00932967,160.74,160.68,8.785]
[1762562375060,5.00932967,160.73,160.69,3.18]
[1762562375258,0.04292985,160.73,160.69,3.22008892]
[1762562376164,0.04292985,160.73,160.7,3.18]
[1762562376362,4.99745905,160.77,160.71,3.18]
[1762562376657,8.72202599,160.82,160.71,3.18]
[1762562376658,3.03,160.82,160.71,3.18]
[1762562376865,3.03,160.8,160.71,3.18]
[1762562377067,5.00109714,160.79,160.71,3.18]
[1762562377267,5.00109714,160.78,160.75,3.18]
[1762562377461,0.04662011,160.77,160.75,3.18]
[1762562377655,0.04662011,160.77,160.73,0.04721263]
[1762562377656,0.04224045,160.78,160.74,0.04224539]
[1762562377855,0.04224045,160.78,160.74,3.22284055]
[1762562377856,4.98363706,160.77,160.74,3.22284055]
[1762562378056,4.98363706,160.76,160.74,0.04284055]
[1762562378263,3.07501061,160.78,160.74,0.04284055]
[1762562378560,4.98506852,160.77,160.74,3.22284055]
[1762562378764,4.98491353,160.76,160.74,3.22284055]
[1762562378959,3.07501061,160.78,160.74,0.04284055]
[1762562379271,3.03,160.76,160.74,0.04284055]
[1762562379455,8.01461492,160.75,160.74,0.04284055]
[1762562383171,4.98461492,160.75,160.74,0.04284055]
[1762562384772,4.98461492,160.75,160.74,3.07284055]
[1762562385162,0.04501061,160.78,160.74,3.07284055]
[1762562386056,2.98501061,160.78,160.74,3.07284055]
[1762562386259,0.04501061,160.78,160.74,3.07284055]
[1762562386664,4.99307769,160.77,160.74,3.07284055]
[1762562386864,0.04501061,160.78,160.74,3.07284055]
[1762562387071,4.99277512,160.77,160.74,3.07284055]
[1762562387271,0.04501061,160.78,160.74,3.07284055]
[1762562387863,0.04501061,160.78,160.74,8.67594055]
[1762562388065,0.04501061,160.78,160.75,3.03]
[1762562389876,0.04501061,160.78,160.76,3.03]
[1762562390173,0.04501061,160.78,160.76,8.6324]
[1762562390369,0.04501061,160.78,160.77,3.03]
[1762562396896,0.04501061,160.78,160.74,3.07284055]
[1762562397598,0.04501061,160.78,160.76,3.03]
[1762562398290,0.04501061,160.78,160.76,8.6324]
[1762562398487,0.04501061,160.78,160.77,3.03]
[1762562400503,2.94,160.85,160.81,3.03]
[1762562400701,2.94,160.85,160.71,3.03]
[1762562400898,4.80818943,160.84,160.71,3.03]
[1762562401099,2.94,160.85,160.78,8.6317]
[1762562401402,0.04043525,160.83,160.81,3.03]
[1762562401699,2.94,160.92,160.78,7.83285596]
[1762562401700,2.94,160.91,160.86,3.03]
[1762562402599,2.94,160.91,160.79,11.2029]
[1762562402600,0.04409401,160.9,160.87,3.12599845]
[1762562402900,0.0430026,160.9,160.87,3.12653872]
[1762562404185,0.0430026,160.9,160.89,3.08]
[1762562405203,3.18,160.98,160.89,4.32]
[1762562405386,3.18,160.98,160.82,7.83285596]
[1762562405387,3.18,160.98,160.9,3.08]
[1762562405593,3.18,160.98,160.93,3.08]
[1762562405791,4.72356489,161.03,160.93,3.08]
[1762562405993,3.18,161.05,160.93,3.08]
[1762562406294,0.04681995,161.0,160.97,3.08]
[1762562406493,3.18,161.03,160.94,3.08]
[1762562406688,0.03962637,161.0,160.97,0.04241809]
[1762562407087,0.03962637,161.0,160.97,3.12241809]
[1762562407896,3.18,161.06,160.97,3.12241809]
[1762562408206,3.18,161.09,161.01,8.6738]
[1762562408902,0.04012016,161.07,161.03,0.04342147]
[1762562409102,0.04012016,161.07,161.03,3.12342147]
[1762562410507,3.22012016,161.07,161.03,0.04342147]
[1762562410694,0.04012016,161.07,161.03,3.12342147]
[1762562411487,0.04012016,161.07,161.04,5.5925]
[1762562411798,0.04012016,161.07,161.05,3.08]
[1762562413605,0.04012016,161.07,161.06,8.6721]
[1762562415997,0.04012016,161.07,161.06,3.08]
[1762562416703,3.18,161.23,161.07,3.08]
[1762562417003,3.18,161.23,161.12,3.08]
[1762562417197,3.18,161.2,161.04,3.08]
[1762562417803,3.22763874,161.14,161.1,0.04011287]
[1762562418002,3.22763874,161.14,161.1,0.0420872]
[1762562418505,3.22763874,161.14,161.1,3.1220872]
[1762562419099,0.04763874,161.14,161.1,3.1220872]
[1762562422395,0.04763874,161.14,161.13,3.08]
[1762562428613,0.04763874,161.14,161.1,3.1220872]
[1762562429416,0.04763874,161.14,161.12,3.08]
[1762562430711,0.04763874,161.14,161.13,5.5897]
[1762562430913,0.04763874,161.14,161.13,8.6697]
[1762562432917,3.06,161.22,161.17,5.5883]
[1762562433310,3.06,161.22,161.07,11.183]
[1762562433311,3.06,161.22,161.18,3.13]
[1762562433918,0.04391025,161.22,161.19,3.13]
[1762562434414,0.04391025,161.22,161.19,8.7175]
[1762562434619,0.04391025,161.22,161.2,3.13]
[1762562435316,0.04391025,161.22,161.2,8.7172]
[1762562435517,0.04391025,161.22,161.21,3.13]
[1762562436208,3.06,161.31,161.24,3.13]
[1762562436412,3.06,161.34,161.24,3.13]
[1762562436612,3.06,161.34,161.27,5.5847]
[1762562436918,3.06,161.34,161.27,3.13]
[1762562437124,0.04328548,161.32,161.29,0.03919338]
[1762562437421,0.04328548,161.32,161.29,3.16919338]
[1762562438317,0.04328548,161.32,161.29,8.75309338]
[1762562438516,0.04328548,161.32,161.3,3.13]
[1762562439021,0.04328548,161.32,161.3,8.7136]
[1762562439224,0.04328548,161.32,161.31,3.13]
[1762562441723,0.04328548,161.32,161.29,2.96919338]
[1762562442424,0.04328548,161.32,161.31,2.93]
[1762562446420,0.04328548,161.32,161.29,2.96919338]
[1762562447226,0.04328548,161.32,161.29,8.55309338]
[1762562447522,0.04328548,161.32,161.3,2.93]
[1762562448634,0.04328548,161.32,161.31,2.93]
[1762562451732,3.13328548,161.32,161.29,0.03919338]
[1762562452229,0.04328548,161.32,161.29,2.96919338]
[1762562452817,0.04328548,161.32,161.31,2.93]
[1762562453431,0.04328548,161.32,161.29,2.96919338]
[1762562453927,0.04328548,161.32,161.29,8.55309338]
[1762562455022,3.13328548,161.32,161.29,0.03919338]
[1762562458330,3.13328548,161.32,161.29,2.96919338]
[1762562458731,0.04328548,161.32,161.29,8.55319338]
[1762562460032,3.13328548,161.32,161.29,0.03919338]
[1762562460341,0.04328548,161.32,161.29,2.96919338]
[1762562461027,3.13328548,161.32,161.29,0.03919338]
[1762562461226,3.13328548,161.32,161.16,18.67]
[1762562461227,5.08213647,161.3,161.21,2.93]
[1762562461424,3.09,161.29,161.15,2.93]
[1762562461634,3.09,161.26,161.15,2.93]
[1762562462129,3.09,161.25,161.17,5.5881]
[1762562462433,3.14768253,161.22,161.19,0.04008767]
[1762562465431,0.04768253,161.22,161.19,3.15008767]
[1762562465734,5.08213647,161.31,161.19,3.15008767]
[1762562465735,3.1,161.28,161.2,3.11]
[1762562465939,3.1,161.32,161.24,3.11]
[1762562466534,3.1,161.32,161.29,5.5839]
[1762562466725,3.1,161.32,161.29,3.15012559]
[1762562466726,0.04536202,161.32,161.29,3.15012559]
[1762562467536,0.04536202,161.32,161.3,5.5836]
[1762562467930,0.04536202,161.32,161.3,8.6936]
[1762562468436,0.04536202,161.32,161.31,3.11]
[1762562468638,0.04536202,161.32,161.3,5.5836]
[1762562469435,3.14536202,161.32,161.29,0.04012559]
[1762562470023,0.04536202,161.32,161.29,0.04012559]
[1762562470232,0.04536202,161.32,161.29,8.73412559]
[1762562470738,0.04536202,161.32,161.29,5.62412559]
[1762562470927,3.14536202,161.32,161.29,0.04012559]
[1762562473530,0.04536202,161.32,161.29,3.15012559]
[1762562474335,0.04536202,161.32,161.29,0.04012559]
[1762562474537,3.14536202,161.32,161.29,0.04012559]
[1762562475239,3.14536202,161.32,161.29,3.15012559]
[1762562475240,0.04536202,161.32,161.29,3.15012559]
[1762562477040,0.04536202,161.32,161.29,8.73412559]
[1762562478242,0.04536202,161.32,161.29,3.15012559]
[1762562479337,0.04536202,161.32,161.3,8.6937]
[1762562479538,0.04536202,161.32,161.31,3.11]
[1762562480947,0.04536202,161.32,161.29,3.15012559]
[1762562481242,3.14536202,161.32,161.29,3.15012559]
[1762562481941,3.1,161.31,161.29,0.04012559]
[1762562482643,3.1,161.3,161.23,3.11]
[1762562483741,0.04526273,161.28,161.25,3.15041579]
[1762562484149,0.04526273,161.28,161.25,0.04041579]
[1762562484150,3.14526273,161.28,161.25,0.04041579]
[1762562486846,3.14526273,161.28,161.25,8.73581579]
[1762562487533,0.04526273,161.28,161.26,8.6951]
[1762562487739,0.04526273,161.28,161.27,3.11]
[1762562489141,3.1,161.41,161.29,3.11]
[1762562489451,3.1,161.4,161.29,3.11]
[1762562489649,3.1,161.36,161.31,5.5832]
[1762562490151,3.14427004,161.35,161.32,0.04693757]
[1762562490934,3.1,161.34,161.32,0.04693757]
[1762562491362,1.28427004,161.35,161.24,5.5857]
[1762562491363,3.1,161.3,161.24,5.5857]
[1762562491645,3.1,161.3,161.2,3.11]
[1762562491846,3.1,161.3,161.25,8.6952]
[1762562492036,3.1,161.3,161.21,3.11]
[1762562492345,0.04381779,161.27,161.24,3.17988069]
[1762562492944,0.04381779,161.27,161.24,8.76548069]
[1762562493946,0.04381779,161.27,161.25,5.5853]
[1762562494347,0.04381779,161.27,161.25,8.7253]
[1762562495446,0.04381779,161.27,161.26,3.14]
[1762562498655,3.02,161.38,161.29,3.14]
[1762562499650,0.04540033,161.35,161.32,0.04227329]
[1762562500046,0.04540033,161.35,161.32,5.62527329]
[1762562500551,3.06540033,161.35,161.32,0.04227329]
[1762562500954,0.04540033,161.35,161.32,3.18227329]
[1762562501651,0.04540033,161.35,161.32,0.04227329]
[1762562501652,3.01540033,161.35,161.32,0.04227329]
[1762562501851,3.01540033,161.35,161.32,5.62527329]
[1762562502357,3.01540033,161.35,161.32,0.04227329]
[1762562503557,0.04540033,161.35,161.32,2.97227329]
[1762562504058,3.01540033,161.35,161.32,0.04227329]
[1762562505058,0.04540033,161.35,161.32,2.97227329]
[1762562505858,3.01540033,161.35,161.32,5.62527329]
[1762562506455,3.01540033,161.35,161.32,0.04227329]
[1762562508063,3.01540033,161.35,161.32,5.62527329]
[1762562508355,0.04540033,161.35,161.32,8.55527329]
[1762562509362,0.04540033,161.35,161.32,2.97227329]
[1762562510566,0.04540033,161.35,161.33,8.5127]
[1762562511153,0.04540033,161.35,161.34,2.93]
[1762562512463,0.04540033,161.35,161.32,0.04227329]
[1762562512464,3.01540033,161.35,161.32,0.04227329]
[1762562518670,8.59750033,161.35,161.32,0.04227329]
[1762562518867,2.97,161.34,161.32,0.04227329]
[1762562520574,8.5525,161.34,161.32,0.04227329]
[1762562520870,2.97,161.33,161.32,0.04227329]
[1762562524769,2.97,161.33,161.23,8.8441917]
[1762562524770,2.92,161.27,161.23,8.8441917]
[1762562524971,2.92,161.27,161.22,5.7841917]
[1762562525273,2.92,161.27,161.2,3.06]
[1762562525472,2.92,161.24,161.18,5.5879]
[1762562525673,0.04219482,161.23,161.17,3.06]
[1762562525977,2.92,161.22,161.19,0.04490541]
[1762562526679,2.92,161.2,161.19,0.04490541]
[1762562526866,2.92,161.2,161.12,5.7841917]
[1762562527091,2.92,161.2,161.12,3.06]
[1762562527262,2.92,161.23,161.15,8.8441917]
[1762562527461,2.92,161.31,161.17,3.06]
[1762562528074,7.78927284,161.33,161.22,0.04684845]
[1762562528075,2.92,161.25,161.22,0.04684845]
[1762562528273,2.92,161.25,161.22,0.04598273]
[1762562528773,2.92,161.23,161.22,0.04598273]
[1762562529370,0.04546005,161.26,161.22,0.04598273]
[1762562529670,2.96546005,161.26,161.22,0.04598273]
[1762562532063,2.92,161.25,161.22,0.04598273]
[1762562533781,2.92,161.25,161.14,3.06]
[1762562533974,8.5066,161.22,161.14,8.6492]
[1762562534567,5.5872,161.21,161.14,3.06]
[1762562534775,0.03933355,161.19,161.16,0.04484792]
[1762562537180,0.03933355,161.19,161.16,3.10484792]
[1762562540582,0.03933355,161.19,161.18,3.06]
[1762562543781,2.92,161.26,161.19,8.6476]
[1762562544693,8.506,161.24,161.19,3.06]
[1762562544886,2.92,161.23,161.21,0.04370746]
[1762562548494,0.04097112,161.24,161.21,3.10370746]
[1762562548789,2.92,161.3,161.21,3.10370746]
[1762562548992,5.5842,161.29,161.23,3.06]
[1762562549688,0.03940545,161.28,161.24,3.1059163]
[1762562550994,0.03940545,161.28,161.25,3.06]
[1762562553906,0.03940545,161.28,161.26,3.18]
[1762562554588,3.09,161.35,161.27,3.18]
[1762562555693,0.0403815,161.33,161.29,8.81074569]
[1762562556299,0.0403815,161.33,161.3,3.18]
[1762562559403,0.0403815,161.33,161.31,3.18]
[1762562562098,0.0403815,161.33,161.32,2.93]
[1762562562800,4.82911237,161.38,161.34,2.93]
[1762562562994,84.20911237,161.41,161.34,2.93]
[1762562563198,1.94911237,161.44,161.36,2.93]
[1762562563898,0.04134868,161.42,161.4,2.93]
[1762562564296,0.04134868,161.42,161.41,2.93]
[1762562564799,2.88,161.47,161.42,2.93]
[1762562565904,0.04547928,161.46,161.43,2.97057525]
[1762562566199,0.04371328,161.46,161.43,2.96927327]
[1762562566504,2.92371328,161.46,161.43,0.03927327]
[1762562566703,29.61469497,161.55,161.43,0.03927327]
[1762562566704,2.88,161.54,161.44,2.93]
[1762562566997,2.88,161.53,161.45,4.87911237]
[1762562567794,2.92609028,161.51,161.47,0.04559436]
[1762562568204,2.88,161.49,161.47,0.04559436]
[1762562569902,2.88,161.48,161.47,0.04559436]
[1762562570201,4.82911237,161.48,161.47,0.04559436]
[1762562570398,4.82911237,161.48,161.39,2.93]
[1762562570399,8.4582,161.47,161.39,2.93]
[1762562571100,2.88,161.47,161.39,2.93]
[1762562571292,0.04510302,161.45,161.41,2.97550319]
[1762562571904,2.92510302,161.45,161.41,2.97550319]
[1762562572400,2.88,161.43,161.41,0.04550319]
[1762562573618,4.82911237,161.43,161.41,0.04550319]
[1762562576103,0.04510302,161.45,161.41,2.97550319]
[1762562576404,0.04510302,161.45,161.41,0.04550319]
[1762562576405,4.82911237,161.42,161.41,0.04550319]
[1762562577311,2.88,161.41,161.35,2.93]
[1762562577501,4.82911237,161.39,161.35,2.93]
[1762562578309,4.86816738,161.39,161.35,2.97167607]
[1762562580207,0.03905501,161.39,161.35,2.97167607]
[1762562581500,0.03905501,161.39,161.36,2.93]
[1762562583912,0.03905501,161.39,161.35,0.04167607]
[1762562583913,4.95816738,161.39,161.35,0.04167607]
[1762562584204,2.97,161.36,161.35,0.04167607]
[1762562587513,4.91911237,161.36,161.35,0.04167607]
[1762562588514,0.03905501,161.39,161.35,4.25167607]
[1762562588714,0.03905501,161.39,161.36,2.97]
[1762562589009,1.94911237,161.44,161.36,2.97]
[1762562589212,1.94911237,161.44,161.37,2.97]
[1762562589609,7.52821237,161.44,161.37,8.5513]
[1762562589807,2.97,161.46,161.38,2.97]
[1762562590008,0.04623471,161.44,161.4,3.01264642]
[1762562590209,3.01623471,161.44,161.4,3.01264642]
[1762562591516,0.04623471,161.44,161.4,3.01264642]